{"text_format":"1","workbook":"xlsx","n_sheets":8,"sheets":["Project Information","Prescriptive Compliance Form","Part 3 -  Details","Part 4 - Details","Part 5 - Details","Part 6 - Details","Validation Reference Page 1","Code Tables"],"not_rendered":{"charts":0,"images":6,"macros":1,"external_links":2,"defined_names":34,"comments":0,"pivot_tables":0},"unopened":[],"bounds":{"document_bytes":16777216,"sheet_cells":100000,"rows_first":2000,"rows_last":500,"rows_between":2000,"halvings":0,"cell_chars":16384,"cell_head_chars":4096},"cells_cut":0,"cells_raw":0,"read":"whole","date_system":"1900"}

{"sheet":"Project Information","index":0,"n_rows":47,"n_cols":9,"rows_kept":47,"cut":false,"hidden":false,"merged":[[28,3,28,6],[22,3,22,6],[26,3,26,6],[26,0,26,1],[27,0,27,1],[28,0,28,1],[23,0,23,1],[23,3,23,6],[25,3,25,6],[25,0,25,1],[22,0,22,1],[30,0,30,8],[18,2,18,6],[29,0,29,1],[21,0,21,1],[29,3,29,6],[21,3,21,6],[20,0,20,1],[20,3,20,6],[19,0,19,1],[19,3,19,6],[18,0,18,1],[13,7,29,8],[13,0,13,1],[16,0,16,1],[27,3,27,6],[13,2,13,6],[12,0,12,6],[24,0,24,1],[24,3,24,6],[0,0,2,8],[3,0,3,8],[4,0,4,8],[5,0,10,8],[11,0,11,8],[16,2,16,6],[17,0,17,1],[17,2,17,6],[15,0,15,1],[15,2,15,6],[14,0,14,1],[14,2,14,6]]}
["NECB 2020 Abridged Prescriptive Path Checklist"]
[]
[]
["About this Document"]
[]
["This form prompts building permit applicants for information required by the authority having jurisdiction (AHJ) to support verification of compliance to the National Energy Code for Buildings (NECB) 2020 and complements other required submissions of the building permit application. It is an abridged version of the checklist and is intended to provide the AHJ with minimum summary information for the prescriptive path only. \nThe form is to be used in conjunction with the NECB 2020. Any textual interpretation will apply only to the specific language of the NECB 2020.\nThis is a template document suitable for modification by the AHJs. It was developed for Microsoft Excel versions 2010 and 2013. Use of earlier versions of Microsoft Excel may not be supported. Please complete all three tabs (sheets) including all information below as some of these inputs are needed for functionality of the form. Blue cells are input cells. \n\n\n"]
[]
[]
[]
[]
[]
["Building Information","building information"]
["\n",null,null,null,null,null,null,"Building Permit Number"," (for internal use only)"]
["Date (yyyy-mm-dd)",null,null,null,null,null,null,"Building Official Notes (for internal use only)"]
["Project Name",null," "]
["Project Address"]
["Contact Person",null," "]
["Contact Email"]
["Contact Phone Number"]
["Type of Project"]
["Conditioned Space (m2)"]
["Semi-heated building"]
["Gross Wall Area (m2)"]
["Vertical Fenestration Area (m2)"]
["Door Area (m2)"]
["Gross Roof Area (m2)"]
["Horizontal Fenestration (Skylights) Area (m2)"]
["Heating Degree Days 18C"]
["Heating Degree Days 15C"]
["Climate Zone of Building Location",null,{"$f":"IF(OR(D47=TRUE, E47=TRUE), \"\", IF(C22='Validation Reference Page 1'!A3, VLOOKUP(TRUE, D41:F46,3,FALSE),VLOOKUP(TRUE, E41:F46,2,FALSE) ))","v":""}]
[]
[]
[]
[]
[]
[]
[]
[]
[]
[null,null,null,18,15]
[null,null,null,{"$f":"IF($C$28<3000, TRUE, FALSE)","v":true},{"$f":"IF($C$29<3000, TRUE, FALSE)","v":true},{"$f":"'Validation Reference Page 1'!C2","v":"Zone 4 < 3000 HDD"}]
[null,null,null,{"$f":"IF(OR($C$28=3000, AND($C$28>3000, $C$28<4000)), TRUE, FALSE)","v":false},{"$f":"IF(OR($C$29=3000, AND($C$29>3000, $C$29<4000)), TRUE, FALSE)","v":false},{"$f":"'Validation Reference Page 1'!C3","v":"Zone 5 3000 to 3999 HDD"}]
[null,null,null,{"$f":"IF(OR($C$28=4000, AND($C$28>4000, $C$28<5000)), TRUE, FALSE)","v":false},{"$f":"IF(OR($C$29=4000, AND($C$29>4000, $C$29<5000)), TRUE, FALSE)","v":false},{"$f":"'Validation Reference Page 1'!C4","v":"Zone 6 4000 to 4999 HDD"}]
[null,null,null,{"$f":"IF(OR($C$28=5000, AND($C$28>5000, $C$28<6000)), TRUE, FALSE)","v":false},{"$f":"IF(OR($C$29=5000, AND($C$29>5000, $C$29<6000)), TRUE, FALSE)","v":false},{"$f":"'Validation Reference Page 1'!C5","v":"Zone 7A 5000 to 5999 HDD"}]
[null,null,null,{"$f":"IF(OR($C$28=6000, AND($C$28>6000, $C$28<7000)), TRUE, FALSE)","v":false},{"$f":"IF(OR($C$29=6000, AND($C$29>6000, $C$29<7000)), TRUE, FALSE)","v":false},{"$f":"'Validation Reference Page 1'!C6","v":"Zone 7B 6000 to 6999 HDD"}]
[null,null,null,{"$f":"IF(OR($C$28=7000,$C$28>7000), TRUE, FALSE)","v":false},{"$f":"IF(OR($C$29=7000,$C$29>7000), TRUE, FALSE)","v":false},{"$f":"'Validation Reference Page 1'!C7","v":"Zone 8 ≥ 7000 HDD"}]
[null,null,null,{"$f":"IF(AND(OR($C$22=\"No\",$C$22=\"\"), HDD = \"\"), TRUE, FALSE)","v":true},{"$f":"IF(AND(OR($C$22=\"Yes\",$C$22=\"\"), C29 = \"\"), TRUE, FALSE)","v":true}]

{"sheet":"Prescriptive Compliance Form","index":1,"n_rows":48,"n_cols":9,"rows_kept":48,"cut":false,"hidden":false,"merged":[[0,8,5,8]]}
[{"$f":"'Project Information'!A15","v":"Project Name"},{"$f":"'Project Information'!C15","v":" "}]
[{"$f":"'Project Information'!A14:B14","v":"Date (yyyy-mm-dd)"},{"$f":"'Project Information'!C14","v":"00:00:00"}]
[{"$f":"'Project Information'!A17:B17","v":"Contact Person"},{"$f":"'Project Information'!C17","v":" "}]
["Climate Zone",{"$f":"'Project Information'!C30","v":""}]
[null,{"$f":"IF('Project Information'!C22=\"\", \"\", IF('Project Information'!C22= \"No\", \"Fully Heated Building\", \"Semi-heated Building\"))","v":""}]
["Building Permit Number",{"$f":"'Project Information'!I13","v":" (for internal use only)"}]
[]
["#","Question",null,null,"Requirements","Units",null,"Compliant?","Additional Comments"]
[null,"Part 3 - Building Envelope - Prescriptive Requirements"]
[1,{"$f":"CONCATENATE(C10,E10,F10,D10)","v":"The calculations of overall thermal transmittance of assemblies for the purpose of comparison with the provisions in Section 3.2. account for the effect of thermal bridging, as required by Article 3.1.1.7."},"The calculations of overall thermal transmittance of assemblies for the purpose of comparison with the provisions in Section 3.2. account for the effect of thermal bridging, as required by Article 3.1.1.7.",null,null,null,{"$f":"IF(OR(H10=\"N/A\",H10=\"Yes\")=TRUE, 1, 0)","v":0}]
[2,{"$f":"IF(ISNA(E11),\"Project Information Tab Incomplete\",CONCATENATE(C11,E11,F11,D11))","v":"Project Information Tab Incomplete"},"The building's FDWR is less than or equal to "," as per the requirements of Article 3.2.1.4. NB: field automatically updates based on the information entered in the Project Information Sheet.",{"$f":"ROUND(VLOOKUP(1,  'Code Tables'!A16:G17,VLOOKUP('Project Information'!C30,'Validation Reference Page 1'!C2:D7,2,FALSE)),2)","v":{"$error":"#N/A"}},null,{"$f":"IF(OR(H11=\"N/A\",H11=\"Yes\")=TRUE, 1, 0)","v":0},{"$f":"IF(ISNA(E11), \"Project Information Tab Incomplete\", IF(AND('Project Information'!C23<>0, 'Project Information'!C24<>\"\", 'Project Information'!C25<>\"\"), IF(E11>=(('Project Information'!C24+'Project Information'!C25)/'Project Information'!C23),\"Yes\",\"No\"),\"Project Information Tab Incomplete\"))","v":"Project Information Tab Incomplete"}]
[3,{"$f":"IF(E12=\"\",\"Project Information Tab Incomplete\", IF('Project Information'!C27=0, \"Skylight requirement not applicable.\", CONCATENATE(C12,E12,F12,D12)))","v":"Project Information Tab Incomplete"},"The building's skylight to roof ratio is less than or equal to "," as per the requirements of Article 3.2.1.4. NB: field automatically updates based on the information entered in the Project Information Sheet.",{"$f":"IF(OR(ISBLANK('Project Information'!C27),ISBLANK('Project Information'!C26)),\"\",0.02)","v":""},null,{"$f":"IF(OR(H12=\"N/A\",H12=\"Yes\")=TRUE, 1, 0)","v":0},{"$f":"IF(B12=\"Skylight requirement not applicable.\",\"N/A\",IF(B12=\"Project Information Tab Incomplete\",\"Project Information Tab Incomplete\",IF(AND('Project Information'!C27<>\"\",'Project Information'!C26<>\"\"),IF(E12>=('Project Information'!C27/'Project Information'!C26),\"Yes\",\"No\"),\"No\")))","v":"Project Information Tab Incomplete"}]
[4,{"$f":"IF(ISNA(E13),\"Project Information Tab Incomplete\",CONCATENATE(C13,E13,F13,D13))","v":"Project Information Tab Incomplete"},"Walls have overall thermal transmittances no greater than ",", as specified in Table 3.2.2.2. Please complete the Part 3 - Details sheet.",{"$f":"VLOOKUP(\"Walls\", 'Code Tables'!B4:H4,VLOOKUP('Project Information'!C30,'Validation Reference Page 1'!C2:D7,2,FALSE))","v":{"$error":"#N/A"}}," W/m2∙K",{"$f":"IF(OR(H13=\"N/A\",H13=\"Yes\")=TRUE, 1, 0)","v":0}]
[5,{"$f":"IF(ISNA(E14),\"Project Information Tab Incomplete\",CONCATENATE(C14,E14,F14,D14))","v":"Project Information Tab Incomplete"},"Roofs have overall thermal transmittances no greater than ",", as specified in Table 3.2.2.2. Please complete the Part 3 - Details sheet.",{"$f":"VLOOKUP(\"Roofs\", 'Code Tables'!B5:H5,VLOOKUP('Project Information'!C30,'Validation Reference Page 1'!C2:D7,2,FALSE))","v":{"$error":"#N/A"}}," W/m2∙K",{"$f":"IF(OR(H14=\"N/A\",H14=\"Yes\")=TRUE, 1, 0)","v":0}]
[6,{"$f":"IF(ISNA(E15),\"Project Information Tab Incomplete\",CONCATENATE(C15,E15,F15,D15))","v":"Project Information Tab Incomplete"},"Floors have overall thermal transmittances no greater than ",", as specified in Table 3.2.2.2. Please complete the Part 3 - Details sheet.",{"$f":"VLOOKUP(\"Floors\", 'Code Tables'!B6:H6,VLOOKUP('Project Information'!C30,'Validation Reference Page 1'!C2:D7,2,FALSE))","v":{"$error":"#N/A"}}," W/m2∙K",0]
[7,{"$f":"IF(ISNA(E16),\"Project Information Tab Incomplete\",CONCATENATE(C16,E16,F16,D16))","v":"Project Information Tab Incomplete"},"The overall thermal transmittance of vertical fenestration is not more than ",", as specified in Table 3.2.2.3. Please complete the Part 3 - Details sheet.",{"$f":"VLOOKUP(\"Vertical Fenestration\", 'Code Tables'!J4:P4,VLOOKUP('Project Information'!C30,'Validation Reference Page 1'!C2:D7,2,FALSE))","v":{"$error":"#N/A"}}," W/m2∙K",0]
[8,{"$f":"IF(OR(ISNA(E17), E12=\"\"), \"Project Information Tab Incomplete\", IF('Project Information'!C27=0, \"Skylight requirement not applicable.\",CONCATENATE(C17,E17,F17,D17)))","v":"Project Information Tab Incomplete"},"The overall thermal transmittance of skylights is not more than ",", as specified in Table 3.2.2.3. Please complete the Part 3 - Details sheet.",{"$f":"VLOOKUP(\"Skylights\", 'Code Tables'!J5:P5,VLOOKUP('Project Information'!C30,'Validation Reference Page 1'!C2:D7,2,FALSE))","v":{"$error":"#N/A"}}," W/m2∙K",0]
[9,{"$f":"IF(ISNA(E18),\"Project Information Tab Incomplete\",CONCATENATE(C18,E18,F18,D18))","v":"Project Information Tab Incomplete"},"The overall thermal transmittance of applicable doors is not more than "," as specified by Table 3.2.2.4. Refer to Sentence 3.2.2.4.(3) and 3.2.2.4.(5) for exemptions. Please complete the Part 3 - Details sheet as applicable. ",{"$f":"VLOOKUP(\"All Doors\",'Code Tables'!R4:X4,VLOOKUP('Project Information'!C30,'Validation Reference Page 1'!C2:D7,2,FALSE))","v":{"$error":"#N/A"}}," W/m2∙K",0]
[10,{"$f":"IF(ISNA(E19),\"Project Information Tab Incomplete\",CONCATENATE(C19,E19,F19,D19))","v":"Project Information Tab Incomplete"},"The overall thermal transmittance of walls or portions thereof that are below the exterior ground level and are part of the building envelope is not greater than ",", as specified in Table 3.2.3.1. Please complete the Part 3 - Details sheet as applicable. ",{"$f":"VLOOKUP(\"Walls\",'Code Tables'!Z4:AF4,VLOOKUP('Project Information'!C30,'Validation Reference Page 1'!C2:D7,2,FALSE))","v":{"$error":"#N/A"}}," W/m2∙K",0]
[11,{"$f":"IF(ISNA(E20),\"Project Information Tab Incomplete\",CONCATENATE(C20,E20,F20,D20))","v":"Project Information Tab Incomplete"},"The overall thermal transmittance of below-ground roofs, is not greater than ",", as described in Article 3.2.3.2.",{"$f":"VLOOKUP(\"Roofs\",'Code Tables'!Z5:AF5,VLOOKUP('Project Information'!C30,'Validation Reference Page 1'!C2:D7,2,FALSE))","v":{"$error":"#N/A"}}," W/m2∙K",0]
[12,{"$f":"IF(ISNA(E21),\"Project Information Tab Incomplete\",CONCATENATE(C21,E21,F21,D21))","v":"Project Information Tab Incomplete"},"The overall thermal transmittance of floors separating conditioned space from the ground that are less than 0.6 m below grade is not greater than ",", as described in Sentence 3.2.3.3.(1).",{"$f":"VLOOKUP(\"Floors\",'Code Tables'!Z6:AF6,VLOOKUP('Project Information'!C30,'Validation Reference Page 1'!C2:D7,2,FALSE))","v":{"$error":"#N/A"}}," W/m2∙K",0]
[13,{"$f":"CONCATENATE(C22,E22,F22,\".\",D22)","v":"The building envelope is designed and constructed with a continuous air barrier system comprised of air barrier assemblies to control air leakage into and out of the conditioned space, in accordance with Sentence 3.2.4.1.(1)."},"The building envelope is designed and constructed with a continuous air barrier system comprised of air barrier assemblies to control air leakage into and out of the conditioned space, in accordance with Sentence 3.2.4.1.(1)",null,null,null,0]
[14,"Air barrier system have a normalized air leakage rate not greater than 1.50 L/(s·m2) when tested in accordance with ASTM E3158, “Standard Test Method for Measuring the Air Leakage Rate of a Large or Multizone Building,” at a pressure differential of 75 Pa, using the criteria specified in Sentence 3.2.4.2.(1). The air leakage rates measured are averaged according to Sentence 3.2.4.2.(2).","Air barrier system have a normalized air leakage rate not greater than 1.50 L/(s·m2) when tested in accordance with ASTM E3158, “Standard Test Method for Measuring the Air Leakage Rate of a Large or Multizone Building,” at a pressure differential of 75 Pa, using the criteria specified in Sentence 3.2.4.2.(1). The air leakage rates measured are averaged according to Sentence 3.2.4.2.(2)",null,null,null,0]
[15,"Metal and glass curtain walls that act as environmental separators have an air leakage not greater than specified in Sentence in 3.2.4.3.(3).","Metal and glass curtain walls that act as environmental separators have an air leakage not greater than specified in Sentence in 3.2.4.3.(3)",null,null,null,0]
[16,"Fixed windows and skylights that act as environmental separators have an air leakage rate not greater than specified in Sentence 3.2.4.3.(4).","Fixed windows and skylights that act as environmental separators have an air leakage rate not greater than specified in Sentence 3.2.4.3.(4)",null,null,null,0]
[17,"Operable windows and skylights that act as environmental separators have an air leakage rate not greater than specified in Sentence 3.2.4.3.(5).","Operable windows and skylights that act as environmental separators have an air leakage rate not greater than specified in Sentence 3.2.4.3.(5)",null,null,null,0]
[18,"Doors that act as environmental separators have an air an leakage rate not greater than specified in Sentence 3.2.4.3.(6).","Doors that act as environmental separators have an air an leakage rate not greater than specified in Sentence 3.2.4.3.(6)",null,null,null,0]
[null,"Part 4 - Lighting - Prescriptive Requirements"]
[19,{"$f":"CONCATENATE(C29,E29,F29,\".\",D29)","v":"The installed interior lighting power described in Article 4.2.1.4. does not exceed the value of the interior lighting power allowance determined using either the building area method described in Article 4.2.1.5., or the space-by-space method described in Article 4.2.1.6."},"The installed interior lighting power described in Article 4.2.1.4. does not exceed the value of the interior lighting power allowance determined using either the building area method described in Article 4.2.1.5., or the space-by-space method described in Article 4.2.1.6",null,null,null,0]
[20,{"$f":"CONCATENATE(C30,E30,F30,\".\",D30)","v":"Interior lighting is controlled with automatic shut off controls in all spaces, meeting the requirements of Article 4.2.2.1."},"Interior lighting is controlled with automatic shut off controls in all spaces, meeting the requirements of Article 4.2.2.1",null,null,null,0]
[21,{"$f":"CONCATENATE(C31,E31,F31,D31)","v":"The connected exterior lighting power does not exceed the exterior lighting allowances in Article 4.2.3.1."},"The connected exterior lighting power does not exceed the exterior lighting allowances in Article 4.2.3.1.",null,null,null,0]
[null,"Part 5 - HVAC - Prescriptive Requirements"]
[22,{"$f":"CONCATENATE(C33,E33,F33,D33)","v":"All HVAC systems are sized in accordance with Good Engineering Practice as required by Sentence 5.2.1.1.(1)."},"All HVAC systems are sized in accordance with Good Engineering Practice as required by Sentence 5.2.1.1.(1).",null,null,null,0]
[23,{"$f":"CONCATENATE(C34,E34,F34,D34)","v":"All air distribution systems are designed such that they can be balanced, as required by Sentence 5.2.2.2.(1)."},"All air distribution systems are designed such that they can be balanced, as required by Sentence 5.2.2.2.(1).",null,null,null,0]
[24,{"$f":"IF(ISNA(E35), \"Project Information Tab Incomplete\", CONCATENATE(C35,E35,F35,D35))","v":"Project Information Tab Incomplete"},"Commercial kitchen ventilation systems whose design exhaust fan airflow rate "," are equipped with a demand control ventilation system as required by Sentence 5.2.3.4.(2)",{"$f":"VLOOKUP(\"value\",'Code Tables'!Q16:W17,VLOOKUP('Project Information'!C30,'Validation Reference Page 1'!C2:D7,2,FALSE))","v":{"$error":"#N/A"}},"L/s",0]
[25,"All hydronic systems are designed so that they can be balanced, as required by Sentence 5.2.5.2.(1).","All hydronic systems are designed so that they can be balanced, as required by Sentence 5.2.5.2.(1).",null,null,null,0]
[26,{"$f":"CONCATENATE(C37,E37,F37,D37)","v":"Each HVAC system is provided with at least one automatic space temperature control device, accurate to within 1ºC, as required by Sentence 5.2.8.1.(1)."},"Each HVAC system is provided with at least one automatic space temperature control device, accurate to within 1ºC, as required by Sentence 5.2.8.1.(1).",null,null,null,{"$f":"IF(OR(H37=\"N/A\",H37=\"Yes\")=TRUE, 1, 0)","v":0}]
[27,{"$f":"CONCATENATE(C38,E38,F38,D38)","v":"Each HVAC system intended to provide comfort heating or cooling is provided with at least one automatic space temperature control device, accurate to within 1ºC, as required by Sentence 5.2.8.1.(1)."},"Each HVAC system intended to provide comfort heating or cooling is provided with at least one automatic space temperature control device, accurate to within 1ºC, as required by Sentence 5.2.8.1.(1).",null,null,null,{"$f":"IF(OR(H38=\"N/A\",H38=\"Yes\")=TRUE, 1, 0)","v":0}]
[28,{"$f":"CONCATENATE(C39,E39,F39,D39)","v":"Each dwelling unit is controlled by at least one thermostatic control device, per Sentence 5.2.8.1.(2)."},"Each dwelling unit is controlled by at least one thermostatic control device, per Sentence 5.2.8.1.(2).",null,null,null,{"$f":"IF(OR(H39=\"N/A\",H39=\"Yes\")=TRUE, 1, 0)","v":0}]
[29,{"$f":"CONCATENATE(C40,E40,F40,\".\",D40)","v":"All applicable unitary and packaged HVAC equipment, and applicable service water heating equipment and components comply with the performance requirements listed in Tables 5.2.12.1.-A to 5.2.12.1.-P, per Sentence 5.2.12.1.(1)."},"All applicable unitary and packaged HVAC equipment, and applicable service water heating equipment and components comply with the performance requirements listed in Tables 5.2.12.1.-A to 5.2.12.1.-P, per Sentence 5.2.12.1.(1)",null,null,null,0]
[30,"Except for equipment otherwise covered by the requirements of Article 5.2.12.1, all heat rejection equipment meets the requirements of Sentence 5.2.12.2.(2).","Except for equipment otherwise covered by the requirements of Article 5.2.12.1, all heat rejection equipment meets the requirements of Sentence 5.2.12.2.(2)",null,null,null,0]
[null,"Part 6 - Service Water Systems - Prescriptive Requirements"]
[31,{"$f":"CONCATENATE(C43,E43,F43,\".\",D43)","v":"All service water heaters comply with the performance requirements listed in Table 6.2.2.1."},"All service water heaters comply with the performance requirements listed in Table 6.2.2.1",null,null,null,0]
[32,{"$f":"CONCATENATE(C44,E44,F44,\".\",D44)","v":"Except for emergency eye washes and emergency showers, individual shower heads have an integral means of limiting the maximum water flow rate to 7.6 L/min, as required by Sentence 6.2.6.1.(1)."},"Except for emergency eye washes and emergency showers, individual shower heads have an integral means of limiting the maximum water flow rate to 7.6 L/min, as required by Sentence 6.2.6.1.(1)",null,null,null,0]
[33,{"$f":"CONCATENATE(C45,E45,F45,\".\",D45)","v":"Except for lavatories in health care facilities and emergency eye washes, all lavatories have an integral means of limiting the maximum water flow rate to 5.7 L/min for private use and 1.9 L/min for public use, when tested in accordance with ASME A112.18.1/CSA B125.1., per Sentence 6.2.6.2.(1)."},"Except for lavatories in health care facilities and emergency eye washes, all lavatories have an integral means of limiting the maximum water flow rate to 5.7 L/min for private use and 1.9 L/min for public use, when tested in accordance with ASME A112.18.1/CSA B125.1., per Sentence 6.2.6.2.(1)",null,null,null,0]
[null,"Part 7 - Electrical Power Systems and Motors - Prescriptive Requirements"]
[34,{"$f":"CONCATENATE(C47,E47,F47,\".\",D47)","v":"Electric distribution systems whose load-carrying capacity is greater than 250 kVA are designed to facilitate the installation of a means to monitor the electrical energy consumption as required by Sentence 7.2.1.1.(1)."},"Electric distribution systems whose load-carrying capacity is greater than 250 kVA are designed to facilitate the installation of a means to monitor the electrical energy consumption as required by Sentence 7.2.1.1.(1)",null,null,null,0]
[35,{"$f":"CONCATENATE(C48,E48,F48,\".\",D48)","v":"The electrical distribution systems of buildings with tenants or dwellings units have the means to separately monitor the electrical energy consumption of the total building and of each individual tenant or dwelling unit, as required by Sentence 7.2.1.1.(2)."},"The electrical distribution systems of buildings with tenants or dwellings units have the means to separately monitor the electrical energy consumption of the total building and of each individual tenant or dwelling unit, as required by Sentence 7.2.1.1.(2)",null,null,null,0]

{"sheet":"Part 3 -  Details","index":2,"n_rows":7,"n_cols":11,"rows_kept":7,"cut":false,"hidden":false,"merged":[[0,0,0,9],[1,0,1,9]]}
["Part 3 - Details"]
["Please complete the following sheet for all envelope assemblies in the building.\n\n\n\n\n"]
["Assembly #","Assembly Name","Assembly Type\n(Please add unique assembly name)","Design U-Value W/(m2∙K)",null,"Code U-Value W/(m2∙K)","Assembly Separating two Conditioned Spaces","Temperature of Colder Conditioned Space  °C","Temperature of Warmer Conditioned Space °C","January Design Temperature °C",{"$f":"(#REF!-#REF!)/((#REF!-(0.5*#REF!)-(0.5*#REF!))*#REF!)","v":{"$error":"#REF!"}}]
[{"$f":"ROW(A4)-3","v":1},null,null,null,{"$f":"IF(C4=\"\",\"\",VLOOKUP(C4, 'Code Tables'!$B$4:$H$12,VLOOKUP('Project Information'!$C$30,'Validation Reference Page 1'!$C$2:$D$7,2),FALSE))","v":""},{"$f":"IF(C4<>\"\",ROUND(IF(G4=\"Yes\", ((I4-J4)/(I4-(0.5*H4)-(0.5*J4)))*E4,E4),3),\"\")","v":""}]
[2,null,null,null,{"$f":"IF(C5=\"\",\"\",VLOOKUP(C5, 'Code Tables'!$B$4:$H$12,VLOOKUP('Project Information'!$C$30,'Validation Reference Page 1'!$C$2:$D$7,2),FALSE))","v":""},{"$f":"IF(C5<>\"\",ROUND(IF(G5=\"Yes\", ((I5-J5)/(I5-(0.5*H5)-(0.5*J5)))*E5,E5),3),\"\")","v":""}]
[3,null,null,null,{"$f":"IF(C6=\"\",\"\",VLOOKUP(C6, 'Code Tables'!$B$4:$H$12,VLOOKUP('Project Information'!$C$30,'Validation Reference Page 1'!$C$2:$D$7,2),FALSE))","v":""},{"$f":"IF(C6<>\"\",ROUND(IF(G6=\"Yes\", ((I6-J6)/(I6-(0.5*H6)-(0.5*J6)))*E6,E6),3),\"\")","v":""}]
[4,null,null,null,{"$f":"IF(C7=\"\",\"\",VLOOKUP(C7, 'Code Tables'!$B$4:$H$12,VLOOKUP('Project Information'!$C$30,'Validation Reference Page 1'!$C$2:$D$7,2),FALSE))","v":""},{"$f":"IF(C7<>\"\",ROUND(IF(G7=\"Yes\", ((I7-J7)/(I7-(0.5*H7)-(0.5*J7)))*E7,E7),3),\"\")","v":""}]

{"sheet":"Part 4 - Details","index":3,"n_rows":8,"n_cols":12,"rows_kept":8,"cut":false,"hidden":false,"merged":[[0,0,0,6],[1,0,1,4],[2,0,2,1]]}
["Part 4 - Details"]
["Please complete the following sheet either for the building or for each space in the building.",null,null,null,null,"Atrium Height (m)",true]
[null,null,"Select compliance option in Cell D3 -->","Space-by-Space Method"]
["Space #",{"$f":"IF('Part 4 - Details'!$D$3='Validation Reference Page 1'!I7,\"\",\"Space Description\")","v":"Space Description"},{"$f":"IF('Part 4 - Details'!$D$3='Validation Reference Page 1'!I7,\"Building Type\",\"Space Type\")","v":"Space Type"},{"$f":"IF('Part 4 - Details'!$D$3='Validation Reference Page 1'!I7,\"LPD, per Table 4.2.1.5.\",\"LPD, per Table 4.2.1.6\")","v":"LPD, per Table 4.2.1.6"},"Design LPD","LPD Compliant","List Control Type(s) Used, per Table 4.2.1.6.","Atrium Height (m)",null,null,"S-b-S","B-A-M"]
[{"$f":"ROW()-4","v":1},null,null,{"$f":"IF($G$2=TRUE, K5, L5)","v":""},null,{"$f":"IF(AND(C5<>\"\", E5<>\"\"),IF(D5>=E5,\"Yes\",\"No\"),\"\")","v":""},null,5,null,null,{"$f":"IF(C5<>\"\", VLOOKUP(C5,'Code Tables'!$I$51:$J$164,2,FALSE), \"\")","v":""},{"$f":"IF(C5<>\"\", VLOOKUP(C5,'Code Tables'!$I$18:$J$50,2,FALSE),\"\")","v":""}]
[{"$f":"ROW()-4","v":2},null,null,{"$f":"IF($G$2=TRUE, K6, L6)","v":""},null,{"$f":"IF(AND(C6<>\"\", E6<>\"\"),IF(D6>=E6,\"Yes\",\"No\"),\"\")","v":""},null,null,null,null,{"$f":"IF(C6<>\"\", VLOOKUP(C6,'Code Tables'!$I$51:$J$164,2,FALSE), \"\")","v":""}]
[3,null,null,{"$f":"IF($G$2=TRUE, K7, L7)","v":""},null,{"$f":"IF(AND(C7<>\"\", E7<>\"\"),IF(D7>=E7,\"Yes\",\"No\"),\"\")","v":""},null,null,null,null,{"$f":"IF(C7<>\"\", VLOOKUP(C7,'Code Tables'!$I$51:$J$164,2,FALSE), \"\")","v":""}]
[4,null,null,{"$f":"IF($G$2=TRUE, K8, L8)","v":""},null,{"$f":"IF(AND(C8<>\"\", E8<>\"\"),IF(D8>=E8,\"Yes\",\"No\"),\"\")","v":""},null,null,null,null,{"$f":"IF(C8<>\"\", VLOOKUP(C8,'Code Tables'!$I$51:$J$164,2,FALSE), \"\")","v":""}]

{"sheet":"Part 5 - Details","index":4,"n_rows":7,"n_cols":9,"rows_kept":7,"cut":false,"hidden":false,"merged":[[0,0,0,8],[1,0,1,8]]}
["Part 5 - Details"]
["Please complete sheet for all HVAC components/equipment in the building. Refer to Tables 5.2.12.1. and 5.2.12.2. for additional information."]
["Equipment #","Equipment Description","Applicable Table for Equipment Category",null,"Type of Equipment","Cooling or Heating Capacity, kW","Performance Testing Standard","Rating Conditions","Minimum Performance"]
[{"$f":"ROW(A4)-3","v":1},null,null,{"$f":"VLOOKUP(C4,'Validation Reference Page 1'!$A$20:$B$36,2,FALSE)","v":{"$error":"#N/A"}}]
[{"$f":"ROW(A5)-3","v":2},null,null,{"$f":"VLOOKUP(C5,'Validation Reference Page 1'!$A$20:$B$36,2,FALSE)","v":{"$error":"#N/A"}}]
[3,null,null,{"$f":"VLOOKUP(C6,'Validation Reference Page 1'!$A$20:$B$36,2,FALSE)","v":{"$error":"#N/A"}}]
[4,null,null,{"$f":"VLOOKUP(C7,'Validation Reference Page 1'!$A$20:$B$36,2,FALSE)","v":{"$error":"#N/A"}}]

{"sheet":"Part 6 - Details","index":5,"n_rows":7,"n_cols":10,"rows_kept":7,"cut":false,"hidden":false,"merged":[[0,0,0,9],[1,0,1,9]]}
["Part 6 - Details"]
["Please complete sheet for all SWH components/equipment in the building. Refer to Table 6.2.2.1. for additional information."]
["Equipment #","Equipment Description","Category from Table 6.2.2.1.",null,"Type of Equipment","Volume of Tank, Vs), L","Input/Vs , W/L","Performance Testing Standard","Rating Conditions","Performance Requirement"]
[{"$f":"ROW(A4)-3","v":1},null,null,{"$f":"VLOOKUP(C4,'Validation Reference Page 1'!$J$17:$K$20,2, FALSE)","v":{"$error":"#N/A"}}]
[{"$f":"ROW(A5)-3","v":2},null,null,{"$f":"VLOOKUP(C5,'Validation Reference Page 1'!$J$17:$K$20,2, FALSE)","v":{"$error":"#N/A"}}]
[{"$f":"ROW(A6)-3","v":3},null,null,{"$f":"VLOOKUP(C6,'Validation Reference Page 1'!$J$17:$K$20,2, FALSE)","v":{"$error":"#N/A"}}]
[{"$f":"ROW(A7)-3","v":4},null,null,{"$f":"VLOOKUP(C7,'Validation Reference Page 1'!$J$17:$K$20,2, FALSE)","v":{"$error":"#N/A"}}]

{"sheet":"Validation Reference Page 1","index":6,"n_rows":105,"n_cols":12,"rows_kept":105,"cut":false,"hidden":true,"merged":[]}
[null,null,"Climate Zone",null,null,"City ","Zone"]
["Yes",null,"Zone 4 < 3000 HDD",2,null,null,null,null,"Type of Building"]
["No",null,"Zone 5 3000 to 3999 HDD",3,null,null,null,null,"New"]
["N/A",null,"Zone 6 4000 to 4999 HDD",4,null,null,null,null,"Addition"]
[null,null,"Zone 7A 5000 to 5999 HDD",5,null,null,null,null,"Alteration to existing building constructed to the NECB"]
[null,null,"Zone 7B 6000 to 6999 HDD",6]
[null,null,"Zone 8 ≥ 7000 HDD",7,null,null,null,null,"Building Area Method"]
[null,null,null,null,null,null,null,null,"Space-by-Space Method"]
[]
["Help Messages"]
["Message 1","Certain NECB requirements are climatic zone dependant. Please refer to Table C-1 to find the number of heating degree-days (HDD) for your building location and enter the number of HDDs for your building location. If the building is semi-heated, select the appropriate value from the 'Degree-Days Below 15C' column and enter the value under the \"Heating Degree Days 15C\" field."]
["Message 2","A building with a design set-point temperature less than 15C is considered to be 'semi-heated'."]
["Message 3","For additional information on calculating building envelope areas, please refer to Appendix Note A-3.1.1.6.(1)."]
[]
[]
[]
[null,null,null,null,null,null,null,null,null,"Electric-Powered Service Water Heater","Electric"]
[null,null,null,null,null,null,null,null,null,"Fuel-Fired Service Water Heaters","Fuel"]
[null,null,null,null,null,null,null,null,null,"Solar Thermal Service Water Heaters","Solar"]
["5.2.12.1.-A","A","Single-package, space-constrained",null,null,null,null,null,null,"Water Heaters for Pools","Pool"]
["5.2.12.1.-B","B","Single-package, others",null,null,null,null,null,null,null,null,"Storage-type; Input ≤ 12 kW; Capacity 50-270 L"]
["5.2.12.1.-C","Cee","Split system, space-constrained",null,null,null,null,null,null,"Manual",null,"Storage-type; Input ≤ 12 kW; Capacity > 270 and ≤ 454 L"]
["5.2.12.1.-D","D","Split system, others",null,null,null,null,null,null,"Restricted to Manual ON",null,"Storage-type; Input > 12 kW"]
["5.2.12.1.-E","E","Small duct, high velocity",null,null,null,null,null,null,"Restricted to Partial Automatic ON",null,"Storage type, heat pump ≤ 24A and ≤ 250V"]
["5.2.12.1.-F","F","Large air conditioners and heat pumps, split and single-package, all electrical phases, in cooling mode",null,null,null,null,null,null,"Bi-Level",null,"Instantaneous"]
["5.2.12.1.-G","G","Large heat pumps, split and single-package, all electrical phases, in heating mode",null,null,null,null,null,null,"Automatic Daylight Responsive Controls for Sidelighting",null,"Gas-fired, storage type; Input ≤ 22 kW"]
["5.2.12.1.-H","H","SPVAC and SPVHP in cooling mode",null,null,null,null,null,null,"Automatic Daylight Responsive Controls for Toplighting",null,"Gas-fired, storage type; Input > 22 and ≤ 30.5 kW"]
["5.2.12.1.-I","I","SPVHP in heating mode",null,null,null,null,null,null,"Automatic Partial OFF",null,"Gas-fired, storage type; all others"]
["5.2.12.1.-J","J","Water-cooled and evaporatively cooled, split and single-package",null,null,null,null,null,null," ",null,"Gas-fired, instantaneous; Input < 59 kW"]
["5.2.12.1.-K","K","Water-cooled, split and single-package",null,null,null,null,null,null,null,null,"Gas-fired, instantaneous; all others"]
["5.2.12.1.-L","L","Evaporatively cooled, split and single-package",null,null,null,null,null,null,null,null,"Oil-fired, instantaneous; Input ≤ 61.5 kW"]
["5.2.12.1.-M","M","Water-cooled, split and single-package ≥ 223",null,null,null,null,null,null,null,null,"Oil-fired, instantaneous; all others"]
["5.2.12.1.-N","N","Evaporatively cooled, split and single-package ≥ 223",null,null,null,null,null,null,null,null,"Oil-fired, storage type; Input ≤ 30.5 kW"]
["5.2.12.1.-O","O","Air-cooled",null,null,null,null,null,null,null,null,"Oil-fired, storage type; Input > 30.5 and ≤ 41 kW"]
["5.2.12.1.-P","P","Water-cooled and evaporatively cooled",null,null,null,null,null,null,null,null,"Oil-fired, storage type; all others"]
["5.2.12.2.","Condensers","Air-cooled ≥ 70",null,null,null,null,null,null,null,null,"With electric back-up"]
[null,null,"Water-cooled and evaporatively cooled ≥ 70",null,null,null,null,null,null,null,null,"With gas-fired back-up"]
[null,null,"Water-to-air",null,null,null,null,null,null,null,null,"Pool Heaters -  Gas-fired; input < 117.2 kW"]
[null,null,"Water-to-water",null,null,null,null,null,null,null,null,"Pool Heaters -  Oil-fired"]
[null,null,"Direct-expansion ground-source heat pumps",null,null,null,null,null,null,null,null,"Heat Pump"]
[null,null,"PTAC and PTHP in cooling mode, standard and non-standard sizes"]
[null,null,"PTHP in heating mode, standard and non-standard sizes"]
[null,null,"Louvered, without reverse cycle"]
[null,null,"Louvered, with reverse cycle"]
[null,null,"Non-louvered, without reverse cycle "]
[null,null,"Non-louvered, with reverse cycle "]
[null,null,"Room air conditioners, casement only "]
[null,null,"Room air conditioners, casement slider"]
[null,null,"Air-cooled, floor-mounted, with or without fluid economizer"]
[null,null,"Water-cooled, floor-mounted, with or without fluid economizer"]
[null,null,"Glycol-cooled, floor-mounted, with or without fluid economizer"]
[null,null,"Air-cooled, ceiling-mounted, free air discharge condenser, with or without fluid economizer"]
[null,null,"Air-cooled, ceiling-mounted, ducted condenser, with or without fluid economizer"]
[null,null,"Water-cooled, ceiling-mounted, with or without fluid economizer"]
[null,null,"Glycol-cooled, ceiling-mounted, with or without fluid economizer"]
[null,null,"Air-cooled air conditioners and heat pumps, with or without heat recovery"]
[null,null,"Air-cooled air conditioners "]
[null,null,"Air-source heat pumps, with or without heat recovery"]
[null,null,"Water-source heat pumps, with or without heat recovery"]
[null,null,"Groundwater source heat pumps, with or without heat recovery"]
[null,null,"Ground-source heat pumps, with or without heat recovery"]
[null,null,"Air-cooled"]
[null,null,"Air-source heat pumps"]
[null,null,"Water-cooled "]
[null,null,"Water-source heat pumps"]
[null,null,"Air-cooled, with energy recovery "]
[null,null,"Air-source heat pumps, with energy recovery"]
[null,null,"Water-cooled, with energy recovery"]
[null,null,"Water-source heat pumps, with energy recovery"]
[null,null,"Air-cooled, with or without remote condensers, all types of compressors "]
[null,null,"Water-cooled, rotary screw, scroll, or reciprocating compressor"]
[null,null,"Water-cooled, centrifugal compressor"]
[null,null,"Single-effect absorption, air-cooled "]
[null,null,"Single-effect absorption, water-cooled "]
[null,null,"Double-effect absorption, indirect fire"]
[null,null,"Double-effect absorption, direct fire"]
[null,null,"Air-source heat pumps, in cooling mode"]
[null,null,"Water-source heat pumps and heat recovery chillers, rotary screw, scroll, or reciprocating compressor, in cooling mode"]
[null,null,"Water-source heat pumps and heat recovery chillers, centrifugal compressor, in cooling mode"]
[null,null,"Air-source heat pumps heating mode"]
[null,null,"Water-source heat pumps, rotary screw, scroll, reciprocating or centrifugal compressor, in heating mode"]
[null,null,"Heat recovery chillers, rotary screw, scroll, reciprocating or centrifugal compressor, simultaneous heating and cooling modes"]
[null,null,"Electric"]
[null,null,"Gas-fired"]
[null,null,"Oil-fired "]
[null,null,"Electric furnaces "]
[null,null,"Gas-fired warm-air furnaces"]
[null,null,"Gas-fired packaged furnaces "]
[null,null,"Gas-fired duct furnaces "]
[null,null,"Gas-fired unit heaters"]
[null,null,"Oil-fired warm-air furnaces "]
[null,null,"Oil-fired duct furnaces and unit heaters "]
[null,null,"Gas-fired fireplaces and stoves, non-decorative "]
[null,null,"Solid-fuel-burning stoves "]
[null,null,"Solid-fuel-burning boilers"]
[null,null,"Gas-fired infrared heaters, high-intensity"]
[null,null,"Gas-fired infrared heaters, tubular and low-intensity"]
[null,null,"Cooling towers and fluid coolers - centrifugal fan, direct-contact "]
[null,null,"Cooling towers and fluid coolers - propeller or axial fan, direct-contact"]
[null,null,"Cooling towers and fluid coolers - centrifugal fan, indirect-contact evaporative "]
[null,null,"Cooling towers and fluid coolers - propeller or axial fan, indirect-contact evaporative"]
[null,null,"Cooling towers and fluid coolers - propeller or axial fan, dry"]
[null,null,"Condensers - centrifugal fan, indirect-contact evaporative"]
[null,null,"Condensers - propeller or axial fan, indirect-contact evaporative"]
[null,null,"Condensers - air-cooled"]

{"sheet":"Code Tables","index":7,"n_rows":151,"n_cols":32,"rows_kept":151,"cut":false,"hidden":true,"merged":[]}
[null,"Part 3"]
[null,"Table 3.2.2.2.",null,null,null,null,null,null,null,"Table 3.2.2.3.",null,null,null,null,null,null,null,"Table 3.2.2.4.",null,null,null,null,null,null,null,"Table 3.2.3.1."]
[null,"Above Ground Opaque Building Assembly","Zone 4: <3000","Zone 5: 3000 to 3999","Zone 6: 4000 to 4999","Zone 7A: 5000 to 5999","Zone 7B: 6000 to 6999","Zone 8: ≥ 7000",null,"Component",{"$f":"C3","v":"Zone 4: <3000"},"Zone 5: 3000 to 3999","Zone 6: 4000 to 4999","Zone 7A: 5000 to 5999","Zone 7B: 6000 to 6999","Zone 8: ≥ 7000",null,"Component",{"$f":"C3","v":"Zone 4: <3000"},"Zone 5: 3000 to 3999","Zone 6: 4000 to 4999","Zone 7A: 5000 to 5999","Zone 7B: 6000 to 6999","Zone 8: ≥ 7000",null,"Assemblies in Contact with the Ground",{"$f":"C3","v":"Zone 4: <3000"},"Zone 5: 3000 to 3999","Zone 6: 4000 to 4999","Zone 7A: 5000 to 5999","Zone 7B: 6000 to 6999","Zone 8: ≥ 7000"]
[null,"Wall",0.28999999999999998,0.26500000000000001,0.24,0.215,0.19,0.16500000000000001,null,"Vertical Fenestration",1.9,1.9,1.73,1.73,1.44,1.44,null,"All Doors",2.12,1.9,1.9,1.9,1.9,1.44,null,"Walls",0.56799999999999995,0.379,0.28399999999999997,0.28399999999999997,0.28399999999999997,0.21]
[null,"Roof",0.16400000000000001,0.156,0.13800000000000001,0.121,0.11700000000000001,0.11,null,"Skylights",2.69,2.69,2.41,2.41,2.0099999999999998,2.0099999999999998,null,null,null,null,null,null,null,null,null,"Roofs",0.56799999999999995,0.379,0.28399999999999997,0.28399999999999997,0.28399999999999997,0.21]
[null,"Floor",0.193,0.17499999999999999,0.156,0.13800000000000001,0.121,0.11700000000000001,null,null,null,null,null,null,null,null,null,null,null,null,null,null,null,null,null,"Floors",0.75700000000000001,0.75700000000000001,0.75700000000000001,0.75700000000000001,0.75700000000000001,0.379]
[null,"Vertical Fenestration",{"$f":"K4","v":1.9},{"$f":"L4","v":1.9},1.73,1.73,1.44,1.44]
[null,"Skylights",{"$f":"K5","v":2.69},{"$f":"L5","v":2.69},2.41,2.41,2.0099999999999998,2.0099999999999998]
[null,"Doors",{"$f":"S4","v":2.12},{"$f":"T4","v":1.9},1.9,1.9,1.9,1.44]
[null,"Underground Walls",{"$f":"AA4","v":0.56799999999999995},{"$f":"AB4","v":0.379},0.28399999999999997,0.28399999999999997,0.28399999999999997,0.21]
[null,"Underground Roofs",{"$f":"AA5","v":0.56799999999999995},0.379,0.28399999999999997,0.28399999999999997,0.28399999999999997,0.21]
[null,"Underground Floors",0.75700000000000001,0.75700000000000001,0.75700000000000001,0.75700000000000001,0.75700000000000001,0.379]
[]
[null,"FDWR Requirements Article 3.2.1.4.",null,null,null,null,null,null,"Part 4",null,null,null,null,null,null,null,"Part 5"]
[null,{"$f":"C3","v":"Zone 4: <3000"},"Zone 5: 3000 to 3999","Zone 6: 4000 to 4999","Zone 7A: 5000 to 5999","Zone 7B: 6000 to 6999","Zone 8: ≥ 7000",null,"Lighting Power Density by Building Type for Use with the Building Area Method",null,null,null,null,null,null,null,"Demand Control Ventilation Threshold for Commercial Kitchen Ventilation Systems"]
[1,0.4,0.4,{"$f":"(2000-(0.2*IF('Project Information'!$C$22=\"No\",HDD,HDD_15)))/3000","v":0.66666666666666663},{"$f":"(2000-(0.2*IF('Project Information'!$C$22=\"No\",HDD,HDD_15)))/3000","v":0.66666666666666663},{"$f":"(2000-(0.2*IF('Project Information'!$C$22=\"No\",HDD,HDD_15)))/3000","v":0.66666666666666663},0.2,null,"Forming Part of Sentences 4.2.1.5.(1), (4) and (5)",null,null,null,null,null,null,null,null,{"$f":"C3","v":"Zone 4: <3000"},"Zone 5: 3000 to 3999","Zone 6: 4000 to 4999","Zone 7A: 5000 to 5999","Zone 7B: 6000 to 6999","Zone 8: ≥ 7000"]
[null,null,null,null,null,null,null,null,"Building Type","Lighting Power Density, W/m2",null,null,null,null,null,null,"value","≥2360","≥2360","≥1880","≥1410","≥1410","≥1410"]
[null,null,null,null,null,null,null,null,"Automotive facility",8.1]
[null,null,null,null,null,null,null,null,"Convention centre",6.9]
[null,null,null,null,null,null,null,null,"Courthouse",8.5]
[null,null,null,null,null,null,null,null,"Dining: bar lounge/leisure",8.6]
[null,null,null,null,null,null,null,null,"Dining: cafeteria/fast food",8.1999999999999993]
[null,null,null,null,null,null,null,null,"Dining: family",7.6]
[null,null,null,null,null,null,null,null,"Dormitory",5.7]
[null,null,null,null,null,null,null,null,"Exercise centre",7.8]
[1,null,null,null,null,null,null,null,"Fire station",6]
[null,null,null,null,null,null,null,null,"Gymnasium",8.1999999999999993]
[null,null,null,null,null,null,null,null,"Health care clinic",8.6999999999999993]
[null,null,null,null,null,null,null,null,"Hospital",10.3]
[null,null,null,null,null,null,null,null,"Hotel/Motel",6]
[null,null,null,null,null,null,null,null,"Library",8.9]
[null,null,null,null,null,null,null,null,"Manufacturing facility",8.8000000000000007]
[null,null,null,null,null,null,null,null,"Motion picture theatre",4.7]
[null,null,null,null,null,null,null,null,"Multi-unit residential building",4.8]
[null,null,null,null,null,null,null,null,"Museum",5.9]
[null,null,null,null,null,null,null,null,"Office",6.9]
[null,null,null,null,null,null,null,null,"Penitentiary",7.4]
[null,null,null,null,null,null,null,null,"Performing arts theatre",9]
[null,null,null,null,null,null,null,null,"Police station",7.1]
[null,null,null,null,null,null,null,null,"Post office",7]
[null,null,null,null,null,null,null,null,"Religious building ",7.2]
[null,null,null,null,null,null,null,null,"Retail area",9]
[null,null,null,null,null,null,null,null,"School/university",7.8]
[null,null,null,null,null,null,null,null,"Sports arena",8.1999999999999993]
[null,null,null,null,null,null,null,null,"Storage garage",1.9]
[null,null,null,null,null,null,null,null,"Town hall",7.4]
[null,null,null,null,null,null,null,null,"Transportation facility",5.4]
[null,null,null,null,null,null,null,null,"Warehouse",4.8]
[null,null,null,null,null,null,null,null,"Workshop",9.8000000000000007]
[]
[null,null,null,null,null,null,null,null,"Atrium < 6 m in height",4.2]
[null,null,null,null,null,null,null,null,"Atrium between 6 m and 12 m in height",5.2]
[null,null,null,null,null,null,null,null,"Atrium > 12 m in height",6.5]
[null,null,null,null,null,null,null,null,"Audience seating area – permanent for auditorium",6.5]
[null,null,null,null,null,null,null,null,"Audience seating area – permanent for gymnasium",2.5]
[null,null,null,null,null,null,null,null,"Audience seating area – permanent for motion picture theatre",2.9]
[null,null,null,null,null,null,null,null,"Audience seating area – permanent for penitentiary",7.2]
[null,null,null,null,null,null,null,null,"Audience seating area – permanent for performing arts theatre",12.5]
[null,null,null,null,null,null,null,null,"Audience seating area – permanent for religious building",7.8]
[null,null,null,null,null,null,null,null,"Audience seating area – permanent for sports arena",3.5]
[null,null,null,null,null,null,null,null,"Audience seating area – permanent other",2.5]
[null,null,null,null,null,null,null,null,"Banking activity area and offices",6.5]
[null,null,null,null,null,null,null,null,"Classroom/Lecture hall/Training room for penitentiary",9.5]
[null,null,null,null,null,null,null,null,"Classroom/Lecture hall/Training room other",7.6]
[null,null,null,null,null,null,null,null,"Computer/Server room",10.1]
[null,null,null,null,null,null,null,null,"Conference/Meeting/ Multi-purpose room",10.5]
[null,null,null,null,null,null,null,null,"Confinement cell",7.5]
[null,null,null,null,null,null,null,null,"Copy/Print room",3.3]
[null,null,null,null,null,null,null,null,"Corridor/Transition area for hospital",7.7]
[null,null,null,null,null,null,null,null,"Corridor/Transition area for manufacturing facility",3.1]
[null,null,null,null,null,null,null,null,"Corridor/Transition area for space designed to ANSI/IES RP-28 (and used primarily by residents)",7.7]
[null,null,null,null,null,null,null,null,"Corridor/Transition area other",4.4000000000000004]
[null,null,null,null,null,null,null,null,"Courtroom",12.9]
[null,null,null,null,null,null,null,null,"Dining area for bar lounge/leisure dining",9.3000000000000007]
[null,null,null,null,null,null,null,null,"Dining area for cafeteria/fast food dining",4.3]
[null,null,null,null,null,null,null,null,"Dining area for family dining",6.5]
[null,null,null,null,null,null,null,null,"Dining area for penitentiary",4.5]
[null,null,null,null,null,null,null,null,"Dining area for space designed to ANSI/IES RP-28 (and used primarily by residents)",13.7]
[null,null,null,null,null,null,null,null,"Dining area other",4.7]
[null,null,null,null,null,null,null,null,"Dressing/Fitting room for performing arts theatre",4.4000000000000004]
[null,null,null,null,null,null,null,null,"Electrical/Mechanical room",4.5999999999999996]
[null,null,null,null,null,null,null,null,"Emergency vehicle garage",5.6]
[null,null,null,null,null,null,null,null,"Food preparation area",11.7]
[null,null,null,null,null,null,null,null,"Guest room",4.4000000000000004]
[null,null,null,null,null,null,null,null,"Laboratory for classroom",11.9]
[null,null,null,null,null,null,null,null,"Laboratory other",14.3]
[null,null,null,null,null,null,null,null,"Laundry/Washing area",5.7]
[null,null,null,null,null,null,null,null,"Loading dock – interior",9.5]
[null,null,null,null,null,null,null,null,"Lobby for elevator",7]
[null,null,null,null,null,null,null,null,"Lobby for hotel",5.4]
[null,null,null,null,null,null,null,null,"Lobby for motion picture theatre",2.5]
[null,null,null,null,null,null,null,null,"Lobby for performing arts theatre",13.5]
[null,null,null,null,null,null,null,null,"Lobby for space designed to ANSI/IES RP-28 (and used primarily by residents)",18.2]
[null,null,null,null,null,null,null,null,"Lobby other",9]
[null,null,null,null,null,null,null,null,"Locker room",5.6]
[null,null,null,null,null,null,null,null,"Lounge/Break room for health care facility",4.5]
[null,null,null,null,null,null,null,null,"Lounge/Break room other",6.3]
[null,null,null,null,null,null,null,null,"Office enclosed, ≤ 25 m2",8]
[null,null,null,null,null,null,null,null,"Office enclosed, > 25 m2",7.1]
[null,null,null,null,null,null,null,null,"Office open plan",6.6]
[null,null,null,null,null,null,null,null,"Pharmacy area",17.899999999999999]
[null,null,null,null,null,null,null,null,"Sales area",11.3]
[null,null,null,null,null,null,null,null,"Seating area – general",2.5]
[null,null,null,null,null,null,null,null,"Stairway","The LPD and lighting control requirements for a stairway shall be the same as those for the space containing the stairway."]
[null,null,null,null,null,null,null,null,"Stairwell",5.3]
[null,null,null,null,null,null,null,null,"Parking garage – interior",1.5]
[null,null,null,null,null,null,null,null,"Storage room < 5 m2",5.5]
[null,null,null,null,null,null,null,null,"Storage room ≥ 5 m2 and ≤ 100 m2",4.0999999999999996]
[null,null,null,null,null,null,null,null,"Vehicle maintenance area",6.5]
[null,null,null,null,null,null,null,null,"Washroom for space designed to ANSI/IES RP-28 (and used primarily by residents)",13.5]
[null,null,null,null,null,null,null,null,"Washroom other",6.8]
[null,null,null,null,null,null,null,null,"Workshop",13.5]
[null,null,null,null,null,null,null,null,"Convention centre – exhibit space",6.6]
[null,null,null,null,null,null,null,null,"Dormitory – living quarters",5.4]
[null,null,null,null,null,null,null,null,"Fire station – sleeping quarters",2.5]
[null,null,null,null,null,null,null,null,"Gymnasium/Fitness centre exercise area",9.6]
[null,null,null,null,null,null,null,null,"Gymnasium/Fitness centre playing area",9.1999999999999993]
[null,null,null,null,null,null,null,null,"Health care facility exam/treatment room",15.1]
[null,null,null,null,null,null,null,null,"Health care facility imaging room",10.1]
[null,null,null,null,null,null,null,null,"Health care facility medical supply room",6.7]
[null,null,null,null,null,null,null,null,"Health care facility nursery",9.9]
[null,null,null,null,null,null,null,null,"Health care facility nurses' station",12.6]
[null,null,null,null,null,null,null,null,"Health care facility operating room",24.3]
[null,null,null,null,null,null,null,null,"Health care facility patient room",7.3]
[null,null,null,null,null,null,null,null,"Health care facility physical therapy room",9.8000000000000007]
[null,null,null,null,null,null,null,null,"Health care facility recovery room",13.5]
[null,null,null,null,null,null,null,null,"Library reading area",10.3]
[null,null,null,null,null,null,null,null,"Library stacks",12.7]
[null,null,null,null,null,null,null,null,"Manufacturing facility detailed manufacturing area",8.6]
[null,null,null,null,null,null,null,null,"Manufacturing facility equipment room",8.1999999999999993]
[null,null,null,null,null,null,null,null,"Manufacturing facility extra high bay area (> 15 m floor-to-ceiling height)",15.3]
[null,null,null,null,null,null,null,null,"Manufacturing facility high bay area (7.5 m to 15 m floor-to-ceiling height)",13.4]
[null,null,null,null,null,null,null,null,"Manufacturing facility low bay area (< 7.5 m floor-to-ceiling height)",9.3000000000000007]
[null,null,null,null,null,null,null,null,"Museum general exhibition area",3.3]
[null,null,null,null,null,null,null,null,"Museum restoration room",11.9]
[null,null,null,null,null,null,null,null,"Post office – sorting area",8.1]
[null,null,null,null,null,null,null,null,"Religious building fellowship hall",5.8]
[null,null,null,null,null,null,null,null,"Religious building worship/pulpit/choir area",9.1999999999999993]
[null,null,null,null,null,null,null,null,"Retail facility dressing/fitting room",5.4]
[null,null,null,null,null,null,null,null,"Retail facility mall concourse ",8.8000000000000007]
[null,null,null,null,null,null,null,null,"Space designed to ANSI/IES RP-28 chapel (used primarily by residents)",7.5]
[null,null,null,null,null,null,null,null,"Space designed to ANSI/IES RP-28 recreation room (used primarily by residents)",19]
[null,null,null,null,null,null,null,null,"Sports arena – playing area Class I facility",31.6]
[null,null,null,null,null,null,null,null,"Sports arena – playing area Class II facility",21.6]
[null,null,null,null,null,null,null,null,"Sports arena – playing area Class III facility",13.9]
[null,null,null,null,null,null,null,null,"Sports arena – playing area Class IV facility",9.3000000000000007]
[null,null,null,null,null,null,null,null,"Transportation facility airport concourse",2.7]
[null,null,null,null,null,null,null,null,"Transportation facility baggage/carousel area",4.2]
[null,null,null,null,null,null,null,null,"Transportation facility terminal ticket counter",5.5]
[null,null,null,null,null,null,null,null,"Warehouse – storage area medium to bulky palletized items",3.6]
[null,null,null,null,null,null,null,null,"Warehouse – storage area small hand-carried items",7.4]